Cogmind - Beta 14 @@@ ROGUE MODE // 2024.10.14 @ 17:22:40 Player: APerTAS Result: Self-destructed Performance ------------- Evolutions (4) 2000 Regions Visited (6) 1200 Robots Destroyed (52) 260 Value Destroyed (1488) 1488 Prototype IDs (11) 220 Alien Tech Used (0) 0 Bonus (300) 300 TOTAL SCORE: 5468 Bonus ------- Registered with UFD 300 Cogmind --------- Core Integrity 689/850 Matter 13/300 Energy 99/100 System Corruption 0% Temperature Warning (313) Movement Core (50) Location -6/Factory Parts ------- > --- POWER (2) -------- (None) > --- PROPULSION (3) --- (None) > --- UTILITY (7) ------ (None) > --- WEAPON (3) ------- (None) > --- INVENTORY (5) ---- Armored Huge Wheel Armored Huge Wheel Peak State ------------ > --- POWER ------------ Improved Deuterium Engine Light Fission Core > --- PROPULSION ------- Armored Huge Wheel > --- UTILITY ---------- Scrap Suit Large Storage Unit Improved Medium Armor Plating Improved Hardlight Generator A0-MCA's Component Scanner > --- WEAPON ----------- Heavy Plasma Cannon Overtuned Coil Gun Subdweller Shrapnel Launcher > --- INVENTORY -------- Improved Treads Improved Treads Armored Huge Wheel Armored Huge Wheel Armored Huge Wheel Surveybot 17 Chip Overtuned Coil Gun Rocket Launcher Heavy Rocket Launcher DRS Beacon [Rating: 62] Favorites ----------- Power Ion Engine Engine Ion Engine Power Core Light Fission Core Propulsion Improved Treads Treads Improved Treads Leg Aluminum Leg Wheel Subdweller Monowheel Utility Scrap Shield Device Scrap Suit Storage Small Storage Unit Processor A0-MCA's Component Scanner Protection Scrap Shield Weapon Assault Rifle Energy Gun Overtuned Beamcaster Energy Cannon Heavy Plasma Cannon Ballistic Gun Assault Rifle Ballistic Cannon Slug Cannon Launcher Subdweller Shrapnel Launcher Build | -11 -10 -10 -10 -9 -9 -6 ------- Run | Yrd Mat Min Sub Rec Scr Fac Slots Evolved 8 | . . . . . . 8 Power 1 | . . . . . . 1 Propulsion 1 | . . . . . . 1 Utility 5 | . . . . . . 5 Weapon 1 | . . . . . . 1 Parts Attached 47 | 6 3 1 20 . 9 8 Power 9 | 1 1 . 4 . 1 2 Engine 8 | 1 1 . 4 . 1 1 Core 1 | . . . . . . 1 Reactor . | . . . . . . . Propulsion 14 | 2 . . 7 . 4 1 Treads 6 | 2 . . . . 4 . Leg 2 | . . . 2 . . . Wheel 6 | . . . 5 . . 1 Hover . | . . . . . . . Flight . | . . . . . . . Utility 11 | 1 2 . 3 . 1 4 Device 3 | . 1 . . . 1 1 Storage 2 | 1 . . . . . 1 Processor 2 | . . . 1 . . 1 Hackware . | . . . . . . . Protection 4 | . 1 . 2 . . 1 Artifact . | . . . . . . . Weapon 13 | 2 . 1 6 . 3 1 Energy Gun 1 | . . . . . 1 . Energy Cannon . | . . . . . . . Ballistic Gun 6 | 2 . 1 2 . 1 . Ballistic Cannon 2 | . . . 2 . . . Launcher 4 | . . . 2 . 1 1 Special Weapon . | . . . . . . . Impact Weapon . | . . . . . . . Slashing Weapon . | . . . . . . . Piercing Weapon . | . . . . . . . Special Melee Weapon . | . . . . . . . Unidentified Prototypes . | . . . . . . . Parts Lost 8 | . . . 5 . . 3 Power . | . . . . . . . Propulsion 2 | . . . 2 . . . Utility 4 | . . . 2 . . 2 Weapon 2 | . . . 1 . . 1 Highest Loss Streak 3 | . . . 1 . . 3 To Critical Strikes . | . . . . . . . Average Slot Usage (%) 85 | . 96 100 84 85 81 64 Engine 13 | . 14 14 14 14 13 6 Treads 20 | . 28 28 5 . 26 4 Leg 2 | . . . 11 . . . Wheel 3 | . . . 8 28 . 3 Device 2 | . 9 . . . 3 10 Storage 5 | . 14 14 2 . . 3 Protection 9 | . . 14 11 14 9 3 Ballistic Gun 11 | . 28 28 10 . 2 6 Ballistic Cannon 6 | . . . 8 14 11 . Launcher 7 | . . . 8 14 13 6 Peak Build Rating 62 | 6 7 7 15 14 24 62 Average Rating 14 | 4 6 7 9 13 16 51 On Entrance 10 | . 6 7 7 13 14 24 Naked Turns 2 | . . . . . . 2 Heaviest Build 79 | 14 17 17 38 38 38 79 Greatest Support 46 | 40 40 40 40 20 46 46 Greatest Overweight (x) 12 | . . . 12 1 2 2 Average Overweight (x) . | . . . . 1 . 1 Largest Inventory Capacity 15 | 8 8 8 8 5 5 15 Average Capacity 6 | 6 8 8 5 5 5 11 Most Carried 13 | 4 8 8 8 5 5 13 Average Carried 5 | 2 6 8 5 4 3 8 Final Capacity 8 | 8 8 8 5 5 5 5 Final Carried 8 | 4 8 8 5 5 5 4 Class Distribution -------------------- 79% | Mutant 10% | Scrapper 6% | Subdweller-Mutant 4% | Tank Dominant Class ---------------- Mutant | -10/Materials Mutant | -10/Mines Mutant | -10/Subcaves Mutant | -9/Recycling Mutant | -9/Scraptown Tank | -6/Factory Resources | -11 -10 -10 -10 -9 -9 -6 ----------- Run | Yrd Mat Min Sub Rec Scr Fac Matter Collected 1382 | 204 152 116 620 229 20 41 Remotely . | . . . . . . . Salvage Created 1239 | . 234 244 434 . . 327 Parts 92 | . 21 19 31 . . 21 Haulers Intercepted . | . . . . . . . Recyclers Shooed 2 | . 1 . . . . 1 Parts Field Recycled . | . . . . . . . Retrieved Matter . | . . . . . . . Parts Self-Destructed 17 | . . . 17 . . . Prevented . | . . . . . . . Kills | -11 -10 -10 -10 -9 -9 -6 ------- Run | Yrd Mat Min Sub Rec Scr Fac Combat Hostiles Destroyed 46 | . 9 6 22 . . 9 Guns 24 | . 9 6 6 . . 3 Cannons 4 | . . . 4 . . . AOE 18 | . . . 12 . . 6 Classes Destroyed 10 | . 2 2 3 . . 3 Tunneler 1 | . . 1 . . . . Recycler 2 | . . 2 . . . . Mechanic 1 | . . . . . . 1 Turret 2 | . . . 2 . . . Swarmer 22 | . 6 6 7 . . 3 Grunt 7 | . 3 . . . . 4 Specialist 1 | . . . . . . 1 Heavy 1 | . . . . . . 1 Artisan 1 | . . . 1 . . . Subdweller 15 | . . . 15 . . . Best Kill Streak 7 | . 3 5 6 . . 7 Combat Bots Only 6 | . 3 4 4 . . 6 Max Kills in Single Turn 3 | . 1 1 3 . . 3 Gunslinging . | . . . . . . . Exploded 3 | . . . 3 . . 3 Melee . | . . . . . . . Uniques/NPCs Destroyed . | . . . . . . . Combat | -11 -10 -10 -10 -9 -9 -6 -------- Run | Yrd Mat Min Sub Rec Scr Fac Hostile Shots Fired 231 | . 38 29 107 . . 57 Missed 74 | . 11 12 39 . . 12 Damage Taken 2818 | . 254 123 1217 . . 1224 Core 340 | . 28 24 127 . . 161 Absorbed by Shields 150 | . . . . . . 150 Regen/Repaired (Parts) 10 | . . . . . 10 . Core Remaining (%) 64 | 100 . . . . 28 . Volleys Fired 120 | . 18 15 57 . . 30 Largest 3 | . 2 2 2 . . 3 Hottest 162 | . 40 40 88 . . 162 Shots Fired 216 | . 36 30 109 . . 41 Gun 145 | . 36 30 50 . . 29 Cannon 39 | . . . 33 . . 6 Launcher 32 | . . . 26 . . 6 Special . | . . . . . . . Kinetic 194 | . 36 30 98 . . 30 Thermal 6 | . . . . . . 6 Explosive 16 | . . . 11 . . 5 Electromagnetic . | . . . . . . . Robot Hit Streak 13 | . 5 5 13 . . 7 Robot Miss Streak 5 | . 4 2 5 . . 5 Penetration Max 1 | . . . . . . 1 Secondary Targets 4 | . 3 . 1 . . . Max Gunslinging Chain 1 | . 1 . 1 . . . Shots Hit Robots 126 | . 19 17 66 . . 24 Core Hits 86 | . 12 13 40 . . 21 Critical Kills 2 | . . 1 1 . . . Critical Parts Destroyed 1 | . . . . . . 1 Critical Strikes 4 | . . 1 2 . . 1 Destroy 4 | . . 1 2 . . 1 Melee Attacks . | . . . . . . . Impact . | . . . . . . . Slashing . | . . . . . . . Piercing . | . . . . . . . Sneak Attacks . | . . . . . . . Combat Hostiles . | . . . . . . . Follow-up Attacks . | . . . . . . . Damage Inflicted 4950 | . 270 176 2638 . . 1866 Guns 1325 | . 270 176 310 . . 569 Cannons 486 | . . . 390 . . 96 Explosions 3139 | . . . 1938 . . 1201 Melee . | . . . . . . . Ramming . | . . . . . . . Kinetic 3474 | . 270 176 2109 . . 919 Thermal 96 | . . . . . . 96 Explosive 1380 | . . . 529 . . 851 Electromagnetic . | . . . . . . . Impact . | . . . . . . . Slashing . | . . . . . . . Piercing . | . . . . . . . Highest Corruption . | . . . . . . . Average Corruption . | . . . . . . . Corruption Purged . | . . . . . . . Corruption Blocked . | . . . . . . . Overload Shots . | . . . . . . . Overflow Damage 84 | . . . 65 . . 19 Projectiles 15 | . . . 15 . . . Explosions 69 | . . . 50 . . 19 Melee . | . . . . . . . Knockbacks 4 | . . . 4 . . . Impact . | . . . . . . . Kinetic 4 | . . . 4 . . . Secondary . | . . . . . . . Self-Inflicted Damage 384 | . . . 204 . . 180 Shots 12 | . . . 8 . . 4 Rammed . | . . . . . . . Targets Rammed . | . . . . . . . Kicked . | . . . . . . . Crushed . | . . . . . . . Highest Temperature 378 | . . 12 19 . . 378 Average Temperature 111 | . . 4 7 . . 166 Received Heat Transfer 534 | . 72 . 219 . . 243 Siege Activations . | . . . . . . . Robots Corrupted . | . . . . . . . Combat Hostiles . | . . . . . . . Parts Fried . | . . . . . . . Impact Corruptions . | . . . . . . . Robots Melted . | . . . . . . . Combat Hostiles . | . . . . . . . Parts Melted . | . . . . . . . Heat Transferred 150 | . . . . . . 150 Parts Sabotaged . | . . . . . . . Parts Stolen . | . . . . . . . Parts Stripped . | . . . . . . . Power Chain Reactions . | . . . . . . . Alert | -11 -10 -10 -10 -9 -9 -6 ------- Run | Yrd Mat Min Sub Rec Scr Fac Peak Influence 420 | . 256 185 . 80 . 420 Initial 57 | . . 21 . 57 . . Average 51 | . 106 38 . 73 . 54 Maximum Alert Level 2 | . 1 . . . . 2 Low Security (%) 96 | 100 85 100 . 100 . 93 Level 1 2 | . 14 . . . . 4 Level 2 . | . . . . . . 1 Level 3 . | . . . . . . . Level 4 . | . . . . . . . Level 5 . | . . . . . . . High Security . | . . . . . . . Max Security . | . . . . . . . Squads Dispatched 11 | . 5 . . . . 6 Investigation 7 | . 4 . . . . 3 Extermination . | . . . . . . . Reinforcement 4 | . 1 . . . . 3 Assault . | . . . . . . . Garrison . | . . . . . . . Intercept . | . . . . . . . Searches Triggered . | . . . . . . . Construction Impeded 1 | . . . . . . 1 Haulers Reinforced . | . . . . . . . Active Scanning Responses . | . . . . . . . Cargo Convoy Interrupts . | . . . . . . . Stealth | -11 -10 -10 -10 -9 -9 -6 --------- Run | Yrd Mat Min Sub Rec Scr Fac Distress Signals . | . . . . . . . Communications Jammed . | . . . . . . . Distress Signals . | . . . . . . . Times Spotted 59 | . 11 11 24 . . 13 Peak Tracking Total 6 | . 4 6 6 . . 6 Tactical Retreats 2 | . . 2 . . . . Traps | -11 -10 -10 -10 -9 -9 -6 ------- Run | Yrd Mat Min Sub Rec Scr Fac Traps Triggered 2 | . 1 . . . . 1 Indirectly . | . . . . . . . Trap Hack Attempts . | . . . . . . . Triggered . | . . . . . . . Disarmed . | . . . . . . . Reprogrammed . | . . . . . . . Reused . | . . . . . . . Traps Extracted . | . . . . . . . Installed . | . . . . . . . Triggered . | . . . . . . . Machines | -11 -10 -10 -10 -9 -9 -6 ---------- Run | Yrd Mat Min Sub Rec Scr Fac Machines Disabled 8 | . . . 4 . . 4 Max in Single Turn 3 | . . . 3 . . 1 Machines Repaired . | . . . . . . . Machines Dismantled . | . . . . . . . Machines Sabotaged 1 | . . . . . . 1 Overloaded Fab Kills . | . . . . . . . Hacking | -11 -10 -10 -10 -9 -9 -6 --------- Run | Yrd Mat Min Sub Rec Scr Fac Machines Accessed 26 | . 5 . 1 5 12 3 Terminals 7 | . 4 . . 2 . 1 Fabricators . | . . . . . . . Repair Stations . | . . . . . . . Recycling Units 6 | . 1 . . 3 . 2 Scanalyzers . | . . . . . . . Garrison Access . | . . . . . . . Total Hacks 129 | . 19 . 4 15 82 9 Successful 111 | . 7 . 4 10 82 8 Failed 18 | . 12 . . 5 . 1 Catastrophic 2 | . 2 . . . . . Database Lockouts . | . . . . . . . Manual 33 | . 17 . . 11 . 5 Terminals 23 | . 16 . . 6 . 1 Fabricators . | . . . . . . . Repair Stations . | . . . . . . . Recycling Units 20 | . 3 . . 9 . 8 Scanalyzers . | . . . . . . . Garrison Access . | . . . . . . . Terminal Hacks 88 | . 2 . 4 . 82 . Record 85 | . . . 4 . 81 . Prototype ID Bank 1 | . 1 . . . . . Branch Access Points 1 | . 1 . . . . . Derelict Proto ID Bank 1 | . . . . . 1 . Fabricator Hacks . | . . . . . . . Repair Station Hacks . | . . . . . . . Recycling Unit Hacks 8 | . 1 . . 4 . 3 Process 1 | . . . . . . 1 Report Inventory 5 | . 1 . . 3 . 1 Retrieve Matter 1 | . . . . . . 1 Retrieve Components 1 | . . . . 1 . . Scanalyzer . | . . . . . . . Garrison Access Hacks . | . . . . . . . Unauthorized Hacks 15 | . 4 . . 6 . 5 Terminals 5 | . 2 . . 2 . 1 Botnet 4 | . 2 . . 2 . . Sabotage 1 | . . . . . . 1 Fabricators . | . . . . . . . Repair Stations 1 | . . . . . . 1 Recycling Units 9 | . 2 . . 4 . 3 Monitor 3 | . 1 . . 1 . 1 Reject 2 | . 1 . . . . 1 Recyclers 1 | . . . . . . 1 Mask 3 | . . . . 3 . . Fedlink 1 | . . . . . . 1 Scanalyzers . | . . . . . . . Garrison Access . | . . . . . . . Data Cores Recovered . | . . . . . . . Used . | . . . . . . . Hacking Detections 7 | . 4 . . 3 . . Full Trace Events 3 | . 3 . . . . . Feedback Events . | . . . . . . . Feedback Blocked . | . . . . . . . Robot Schematics Acquired . | . . . . . . . Robots Built . | . . . . . . . Authchips . | . . . . . . . Time . | . . . . . . . Total Robot Build Rating . | . . . . . . . Part Schematics Acquired . | . . . . . . . Parts Built . | . . . . . . . Authchips . | . . . . . . . Time . | . . . . . . . Total Part Build Rating . | . . . . . . . Parts Repaired . | . . . . . . . Time . | . . . . . . . Parts Recycled . | . . . . . . . Recycled Matter 13 | . . . . . . 13 Retrieved Matter 13 | . . . . . . 13 Retrieved Components 1 | . . . . 1 . . Parts Scanalyzed . | . . . . . . . Part Schematics Acquired . | . . . . . . . Parts Damaged . | . . . . . . . Bothacking | -11 -10 -10 -10 -9 -9 -6 ------------ Run | Yrd Mat Min Sub Rec Scr Fac Used RIF Installer . | . . . . . . . Robots Hacked . | . . . . . . . Non-combat . | . . . . . . . Combat . | . . . . . . . Robot Hacks Applied . | . . . . . . . Relay Couplers Released . | . . . . . . . Fabnet Peak Effective % . | . . . . . . . Robots Rewired . | . . . . . . . Allies Hacked . | . . . . . . . Hacks Repelled . | . . . . . . . Allies | -11 -10 -10 -10 -9 -9 -6 -------- Run | Yrd Mat Min Sub Rec Scr Fac Total Allies . | . . . . . . . Largest Group . | . . . . . . . Highest-Rated Group . | . . . . . . . Highest-Rated Ally . | . . . . . . . Total Orders . | . . . . . . . Ally Attacks . | . . . . . . . Total Damage . | . . . . . . . Kills . | . . . . . . . Allies Corrupted . | . . . . . . . Allies Melted . | . . . . . . . Intel | -11 -10 -10 -10 -9 -9 -6 ------- Run | Yrd Mat Min Sub Rec Scr Fac Robot Analysis Total . | . . . . . . . Derelict Logs Recovered 5 | . . 1 1 . 3 . Drone Launches . | . . . . . . . Drone Recoveries . | . . . . . . . Exploration | -11 -10 -10 -10 -9 -9 -6 ------------- Run | Yrd Mat Min Sub Rec Scr Fac Turns Passed 8141 | 89 466 1903 1725 201 3110 647 Spaces Moved 4533 | 50 251 613 1056 209 1960 394 Core 112 | 3 . . 15 . 90 4 Treads 3073 | 47 251 613 189 . 1842 131 Legs 391 | . . . 391 . . . Wheels 957 | . . . 461 209 28 259 Hover . | . . . . . . . Flight . | . . . . . . . Fastest Speed 50 | 50 160 160 95 95 95 50 Average Speed 149 | 153 160 160 141 95 156 138 Slowest Speed 650 | 160 160 160 650 95 160 160 Overloaded Moves . | . . . . . . . Propulsion Burnouts . | . . . . . . . Robots Hopped . | . . . . . . . Cave-ins Triggered . | . . . . . . . Exploration Rate (%) 51 | 4 44 98 59 45 96 11 Regions Visited 6 Branch Regions 4 Pre-discovered Areas 5 | . . . . . 5 . Known Exits Taken 1 | . 1 . . . . . Unknown Exits Taken 5 | 1 . 1 1 1 1 . Scrap Searched 10 | . . 1 5 . 4 . Spaces Dug . | . . . . . . . Terrain Destroyed 298 | . . . 204 . . 94 Melee . | . . . . . . . Projectile 27 | . . . 3 . . 24 AOE 271 | . . . 201 . . 70 Terrain Rammed . | . . . . . . . Walls Destroyed . | . . . . . . . Machines Disabled . | . . . . . . . Actions | -11 -10 -10 -10 -9 -9 -6 --------- Run | Yrd Mat Min Sub Rec Scr Fac Total 5714 | 59 280 1509 1181 212 2006 467 Wait 947 | . . 877 23 . 22 25 Move 4527 | 49 250 612 1055 208 1959 394 Hop . | . . . . . . . Pick Up 33 | 4 6 2 7 2 5 7 Fast Attach 23 | 6 1 . 6 . 6 4 Attach 6 | . . . 2 . 1 3 Detach . | . . . . . . . Swap 18 | . 2 1 12 . 2 1 Drop 35 | . 3 2 14 2 11 3 Fire 120 | . 18 15 57 . . 30 Melee . | . . . . . . . Ram . | . . . . . . . Kick . | . . . . . . . Crush . | . . . . . . . Escape Stasis . | . . . . . . . Rewire . | . . . . . . . Trap . | . . . . . . . Miscellaneous 5 | . . . 5 . . . Route ------- -11/Scrapyard -10/Materials (discovered 2 exits: [*Mat] / *Min) -10/Mines (discovered 2 exits: [*Mat] / *Sub) -10/Subcaves -9/Recycling (discovered 2 exits: [*Fac] / *Scr) -9/Scraptown (discovered 2 exits: *Fac x2) -6/Factory (discovered 5 exits: Fac x2 / Low / Ext x2) History --------- Turn | Location | Event 6 | -11/Scrapyard | Discovered new exit (range 14) 90 | -11/Scrapyard | Entered Materials 204 | -10/Materials | Identified exit to Mines 299 | -10/Materials | Discovered new exit (range 10) 310 | -10/Materials | Build established: Mutant 556 | -10/Materials | Entered Mines 608 | -10/Mines | Learned 8 Materials zone layouts 632 | -10/Mines | Found a damaged Exp. Sensor Array with a note attached 1239 | -10/Mines | Discovered new exit (range 5) 1865 | -10/Mines | Received a Rocket Launcher from a helpful Derelict 2396 | -10/Mines | Discovered new exit (range 5) 2459 | -10/Mines | Entered Subcaves 2513 | -10/Subcaves | A swath of the cavern ceiling suddenly collapsed 2775 | -10/Subcaves | A swath of the cavern ceiling suddenly collapsed 3166 | -10/Subcaves | Ambushed by Subdweller buried in earth 3362 | -10/Subcaves | Visited Clippyterm 3365 | -10/Subcaves | Learned Research security intel 3414 | -10/Subcaves | Disturbed a concealed Subdweller 3466 | -10/Subcaves | Learned Materials garrison access intel 3715 | -10/Subcaves | Core integrity fell below 50% 3800 | -10/Subcaves | Build established: Subdweller-Mutant 3833 | -10/Subcaves | Shifting Twisted Machinery released Sub. Optics 3834 | -10/Subcaves | Shifting Twisted Machinery released Sub. Beam Cannon 4135 | -10/Subcaves | Discovered new exit (range 12) 4184 | -10/Subcaves | Entered Recycling 4262 | -9/Recycling | Discovered new exit (range 6) 4296 | -9/Recycling | Build established: Mutant 4343 | -9/Recycling | Scanned before Scraplab entrance 4370 | -9/Recycling | Entered Scraplab 4383 | -9/Recycling | Discovered new exit (range 2) 4385 | -9/Recycling | Entered Scraptown 4894 | -9/Scraptown | Discovered new exit (range 5) 4932 | -9/Scraptown | Scanned Subdweller tech in exchange for log data 4936 | -9/Scraptown | Learned Research terminal intel 4939 | -9/Scraptown | Learned location of Zion (-7) 5005 | -9/Scraptown | Visited Cave Peace 5061 | -9/Scraptown | Visited Symbiants 5099 | -9/Scraptown | Visited Cyclists 5234 | -9/Scraptown | Heard Great Nut preacher, LISTEN AND RECITE! 5436 | -9/Scraptown | Visited IN-MT5's Study 5511 | -9/Scraptown | Visited CPS Storage 5579 | -9/Scraptown | Visited Comm Corps 5649 | -9/Scraptown | Visited UFD Registry 5649 | -9/Scraptown | Registered with UFD as "Shadownade" 5670 | -9/Scraptown | Visited Fellowship of the Rings 5798 | -9/Scraptown | Guru changed UFD alias to "Technobrain" 6012 | -9/Scraptown | Entered Cyclist Reading Room 6172 | -9/Scraptown | Visited Science Guys 6263 | -9/Scraptown | Visited Curators Association 6404 | -9/Scraptown | Delivered Scrap Shield to a Scientist 6593 | -9/Scraptown | Visited Scrapoid Pod Storage 6623 | -9/Scraptown | Visited Scrap Suit Storage 6673 | -9/Scraptown | Found Scrap Suit 6769 | -9/Scraptown | Visited A0-MCA Data Center 6779 | -9/Scraptown | Given a B rating by A0-MCA 6785 | -9/Scraptown | Found A0-MCA's Component Scanner 6820 | -9/Scraptown | Visited Derelict Rescue Squad 6829 | -9/Scraptown | Found DRS Beacon 6865 | -9/Scraptown | Visited Research Penetration Think Tank 6907 | -9/Scraptown | Visited Modified Component R&D 6989 | -9/Scraptown | Build established: Scrapper 7099 | -9/Scraptown | Visited Cartography Club 7147 | -9/Scraptown | Found Surveybot 17 Chip 7247 | -9/Scraptown | Learned location of Lower Caves (-6) 7247 | -9/Scraptown | Learned location of Cetus (-6) 7247 | -9/Scraptown | Learned 8 Materials zone layouts 7247 | -9/Scraptown | Learned 24 Factory zone layouts 7247 | -9/Scraptown | Learned 16 Research zone layouts 7247 | -9/Scraptown | Learned 4 Storage zone layouts 7247 | -9/Scraptown | Learned 24 Upper Caves zone layouts 7247 | -9/Scraptown | Learned 24 Proximity Caves zone layouts 7247 | -9/Scraptown | Learned 4 Hub_04(d) zone layouts 7247 | -9/Scraptown | Learned location of 2 exits from Research 7247 | -9/Scraptown | Learned location of 1 exit from Proximity Caves 7247 | -9/Scraptown | Learned location of 3 exits from Proximity Caves 7391 | -9/Scraptown | Discovered new exit (range 3) 7495 | -9/Scraptown | Entered Factory 7495 | -6/Factory | Evolved 8 slots: Power x1, Propulsion x1, Utility x5, Weapon x1 7496 | -6/Factory | Identified exit to Extension 7497 | -6/Factory | Identified exit to Lower Caves 7497 | -6/Factory | Identified exit to Factory 8066 | -6/Factory | Build established: Tank 8140 | -6/Factory | Released all parts (8) 8142 | -6/Factory | Self-destructed Last Messages --------------- 08132_ X-62 Marksman heat spikes uncontrollably. 08132_ X-62 Marksman overheating. 08133_ X-62 Marksman heat damages Targeting Computer, Imp. Deuterium Engine, Imp. Carbon-fiber Leg. 08133_ Slug penetrates X-62 Marksman. 08133_ X-62 Marksman destroyed. 08133_ G-50 Soldier destroyed. 08135_ Slug penetrates G-50 Soldier. 08136_ Penetrated by Slug. 08137_ The unstable cave ceiling collapses. 08139_ Penetrated by Slug. 08139_ Imp. Medium Armor Plating destroyed. 08140_ Released Imp. Deuterium Engine. 08140_ Released Scrap Suit. 08140_ Released Ovr. Coil Gun. 08140_ Released A0-MCA's Component Scanner. 08140_ Released Arm. Huge Wheel. 08140_ Released Lrg. Storage Unit. 08140_ Released Hvy. Plasma Cannon. 08140_ Released Hvy. Rocket Launcher. Map ----- +----------------------------------------------------+ | ##??????# # """ """ #??# | | #???????# # #??# """"""" | | # ###???????# #############???# """"""" | | ######?????#######+#######???????????# """"""" | | #??????????# #???????????# """"""" | | #??????????# ! #???????????# | | #??????????# #???????????# """"""" | | #??????????# #???????????# """"""" | | #??????????# = #???????????# """"""" | | #??????????# #???????????# """"""" | | ???????????# #???????????# | | ?????????????# #???????????########### | | ?????????????# #?????????????????????? | | ############ #?????????????????????? | | # ## ! #?????????????????????? | | # ###+############?????????????????????? | | # ## #??????????????????????? | | # ## #??????????????????????? | | # ## #??????????????????????? | | # ## """" """" #??????????????????????? | | + ## """"t"""" #??????????????????????? | | # # """" """" =####???????????????????? | | ############ " """==% ######??????????????? | | #?????????# ]=*!! ????????? | | #????????# ][[&# ????????? | | #????????# = @ # ????????? | | #????????# * = % ?????????? | | #????????# = %! # ?????????? | | +####???????## g # ?????????? | | #????????## % ? ?????????? | | """"#?????????## # ? ??????????? | | """"#??????????## A # # ? ??????????? | | """"#########??# # # ####? ? ???????????? | | """"# ?! x #????? ? ??????????? | | # ??????? ? ???????????? | | ##### """" """ #???????###?+##???????????? | | ????# """" """" ?????????????????R????????? | | ????# """" ""?" ???????????????????????????? | | ?????????????"" + ""G"" | | ????????????? # " " | | ?????????????"" # """" | | ?????????????"" ####+########## """" """ """ | | ?????????????"" # #????# """" """ """ | | ?????????????"" # #????# """" """ """ | | ????????????? # ###### """" | | ?????????????##+## + """" """ """ | | ??????????????# ## ###### """ """ | | ??????????????# ## #????# """ """ | | ??????????????# ## #????##### | | ??????????????# ## #????????# """ """ | +----------------------------------------------------+ Best States ------------- Heat Dissipation 37 Energy Generation 29 Energy Capacity 350 Matter Stores 300 Matter Capacity 300 Sight Range 16 Terrain Scan Density 10 Armor Coverage 800 Evasion (%) 55 Recoil Reduction 2 Item Schematics ----------------- None Robot Schematics ------------------ None Fabricated ------------ Nothing Alien Tech Used ----------------- None Achievements -------------- None Challenges ------------ None Game ------ Seed GhostArmoredMatter Manual? 0 Play Time 00:55:52 Cumulative 37.5 hours Start 2024.10.14 @ 16:18:15 End 2024.10.14 @ 17:22:40 Sessions 1 Manual Loads 0 Difficulty Rogue Special Mode None Game No. 145 Rogue 145 Adventurer 0 Explorer 0 Win Type - Total 0 Types 0/0/0/0/0/0/0/0/0 Lore% 48 Gallery% 32 Achievement% 34 Wizard Run 0 Options --------- Layout 0 ASCII 0 Keyboard 0 Movement Arrows Keybinds 0 Fullscreen 1 Font 24/Terminus Map View 64x52 Zoom Use 0% Tactical HUD 1 Map Filters NONE Filters NONE Steam 1 RUN: 38986b70-7dd9-409c-ab43-02f96b0a562d